[Event "The Kvibergspelen 2024"]
[Site "Kviberg Park Hotel & Conference, Krutvagen 2, Gothenburg, Sweden"]
[Date "2024.09.08"]
[Round "8.21"]
[White "Dingertz, Gustav"]
[Black "Bergdahl, Daniel"]
[Result "0-1"]
[TimeControl "15 minutes + 5 seconds per move from move one (Round 1 - 4) / 90 minutes + 30 seconds per move from move one (Round 5 - 8)"]
[WhiteFideId "1767917"]
[BlackFideId "1780921"]
[WhiteElo "1938"]
[BlackElo "1737"]

1. e4 {[%clk 01:30:57]} {[%emt 00:00:03]} c6 {[%clk 01:30:48]} {[%emt
00:00:13]} 2. Nf3 {[%clk 01:31:21]} {[%emt 00:00:05]} d5 {[%clk 01:31:09]}
{[%emt 00:00:09]} 3. Nc3 {[%clk 01:31:46]} {[%emt 00:00:05]} dxe4 {[%clk
01:31:33]} {[%emt 00:00:06]} 4. Nxe4 {[%clk 01:32:10]} {[%emt 00:00:06]} Nf6
{[%clk 01:31:50]} {[%emt 00:00:14]} 5. Qe2 {[%clk 01:32:35]} {[%emt 00:00:05]}
Nxe4 {[%clk 01:32:05]} {[%emt 00:00:14]} 6. Qxe4 {[%clk 01:33:00]} {[%emt
00:00:05]} Be6 {[%clk 01:32:17]} {[%emt 00:00:17]} 7. c4 {[%clk 01:13:23]}
{[%emt 00:20:07]} Nd7 {[%clk 01:31:18]} {[%emt 00:01:30]} 8. d4 {[%clk
01:10:59]} {[%emt 00:02:54]} g6 {[%clk 01:28:49]} {[%emt 00:02:59]} 9. Bd2
{[%clk 01:08:39]} {[%emt 00:02:49]} Bg7 {[%clk 01:26:29]} {[%emt 00:02:51]} 10.
Bc3 {[%clk 01:08:57]} {[%emt 00:00:12]} Nb6 {[%clk 01:26:13]} {[%emt 00:00:45]}
11. b3 {[%clk 01:07:25]} {[%emt 00:02:02]} Bf5 {[%clk 01:25:24]} {[%emt
00:01:21]} 12. Qe3 {[%clk 01:07:31]} {[%emt 00:00:20]} O-O {[%clk 01:22:31]}
{[%emt 00:03:26]} 13. Be2 {[%clk 01:06:27]} {[%emt 00:01:33]} Qc7 {[%clk
01:21:32]} {[%emt 00:01:30]} 14. O-O {[%clk 01:01:16]} {[%emt 00:05:38]} Rfe8
{[%clk 01:17:41]} {[%emt 00:04:23]} 15. Rfe1 {[%clk 00:59:29]} {[%emt
00:02:17]} h5 {[%clk 01:16:55]} {[%emt 00:01:16]} 16. Rad1 {[%clk 00:58:49]}
{[%emt 00:01:10]} Rad8 {[%clk 01:16:27]} {[%emt 00:00:59]} 17. Nh4 {[%clk
00:57:41]} {[%emt 00:01:36]} Bc8 {[%clk 01:11:31]} {[%emt 00:05:28]} 18. f4
{[%clk 00:56:44]} {[%emt 00:01:25]} Qd6 {[%clk 01:06:16]} {[%emt 00:05:47]} 19.
Qg3 {[%clk 00:46:20]} {[%emt 00:10:53]} Nd7 {[%clk 01:02:57]} {[%emt 00:03:50]}
20. Bxh5 {[%clk 00:43:53]} {[%emt 00:02:57]} gxh5 {[%clk 01:01:37]} {[%emt
00:01:50]} 21. d5 {[%clk 00:42:53]} {[%emt 00:01:30]} Nf6 {[%clk 00:57:02]}
{[%emt 00:05:04]} 22. Re5 {[%clk 00:41:09]} {[%emt 00:02:15]} Bg4 {[%clk
00:51:32]} {[%emt 00:06:00]} 23. Nf5 {[%clk 00:28:31]} {[%emt 00:13:08]} Bxf5
{[%clk 00:41:44]} {[%emt 00:10:18]} 24. Rxf5 {[%clk 00:28:29]} {[%emt
00:00:33]} Kf8 {[%clk 00:40:11]} {[%emt 00:02:02]} 25. Rg5 {[%clk 00:26:08]}
{[%emt 00:02:50]} Bh6 {[%clk 00:36:32]} {[%emt 00:04:10]} 26. Be5 {[%clk
00:26:18]} {[%emt 00:00:20]} Qd7 {[%clk 00:34:59]} {[%emt 00:02:04]} 27. Bxf6
{[%clk 00:24:50]} {[%emt 00:01:57]} Bxg5 {[%clk 00:34:24]} {[%emt 00:01:05]} 28.
Bxg5 {[%clk 00:25:17]} {[%emt 00:00:03]} Qg4 {[%clk 00:34:35]} {[%emt
00:00:18]} 29. Qxg4 {[%clk 00:25:21]} {[%emt 00:00:27]} hxg4 {[%clk 00:34:46]}
{[%emt 00:00:18]} 30. Kf2 {[%clk 00:24:43]} {[%emt 00:01:08]} cxd5 {[%clk
00:34:41]} {[%emt 00:00:36]} 31. cxd5 {[%clk 00:25:08]} {[%emt 00:00:05]} Rd7
{[%clk 00:34:28]} {[%emt 00:00:43]} 32. Kg3 {[%clk 00:25:07]} {[%emt 00:00:30]}
f5 {[%clk 00:34:45]} {[%emt 00:00:13]} 33. Rd2 {[%clk 00:25:13]} {[%emt
00:00:23]} Red8 {[%clk 00:34:51]} {[%emt 00:00:26]} 34. Re2 {[%clk 00:25:38]}
{[%emt 00:00:05]} Kf7 {[%clk 00:32:52]} {[%emt 00:02:29]} 35. Re5 {[%clk
00:25:42]} {[%emt 00:00:25]} Rxd5 {[%clk 00:32:57]} {[%emt 00:00:26]} 36. Rxe7+
{[%clk 00:25:57]} {[%emt 00:00:16]} Kg8 {[%clk 00:32:08]} {[%emt 00:01:19]} 37.
Rxb7 {[%clk 00:25:57]} {[%emt 00:00:30]} R8d7 {[%clk 00:31:40]} {[%emt
00:00:57]} 38. Rxd7 {[%clk 00:23:55]} {[%emt 00:02:32]} Rxd7 {[%clk 00:32:02]}
{[%emt 00:00:08]} 39. Bf6 {[%clk 00:24:04]} {[%emt 00:00:22]} Kf7 {[%clk
00:32:08]} {[%emt 00:00:23]} 40. Be5 {[%clk 00:24:23]} {[%emt 00:00:10]} Rd3+
{[%clk 00:31:47]} {[%emt 00:00:52]} 41. Kh4 {[%clk 00:24:42]} {[%emt 00:00:09]}
Rd2 {[%clk 00:31:41]} {[%emt 00:00:38]} 42. Kg3 {[%clk 00:24:33]} {[%emt
00:00:38]} Rxa2 {[%clk 00:31:54]} {[%emt 00:00:18]} 43. b4 {[%clk 00:24:40]}
{[%emt 00:00:23]} Ke6 {[%clk 00:31:39]} {[%emt 00:00:44]} 44. Bd4 {[%clk
00:24:17]} {[%emt 00:00:53]} Kd5 {[%clk 00:31:15]} {[%emt 00:00:55]} 45. Bc5
{[%clk 00:24:43]} {[%emt 00:00:03]} a5 {[%clk 00:30:54]} {[%emt 00:00:52]} 46.
h3 {[%clk 00:24:50]} a4 {[%clk 00:30:38]} {[%emt 00:01:10]} 47. hxg4 {[%clk
00:25:01]} {[%emt 00:00:19]} fxg4 {[%clk 00:30:53]} {[%emt 00:00:14]} 48. Be7
{[%clk 00:24:08]} {[%emt 00:01:22]} Rb2 {[%clk 00:30:32]} {[%emt 00:00:52]} 49.
b5 {[%clk 00:24:28]} {[%emt 00:00:10]} Ke6 {[%clk 00:29:32]} {[%emt 00:01:31]}
50. Bc5 {[%clk 00:24:18]} {[%emt 00:00:39]} Kf5 {[%clk 00:29:45]} {[%emt
00:00:17]} 51. b6 {[%clk 00:24:40]} {[%emt 00:00:08]} Rb5 {[%clk 00:29:56]}
{[%emt 00:00:19]} 52. Bd4 {[%clk 00:24:48]} {[%emt 00:00:21]} a3 {[%clk
00:29:49]} {[%emt 00:00:38]} 53. Kf2 {[%clk 00:24:52]} {[%emt 00:00:26]} Kxf4
{[%clk 00:29:49]} {[%emt 00:00:30]} 0-1